bitfinex-derivatives/quotes_ETHF0:USTF0_20250708
["timestamp","ask_amount","ask_price","bid_price","bid_amount"]
[1751997920023,0.76324,2620.4,2620.3,0.6929]
[1751997920220,3.97104,2620.4,2620.3,0.6929]
[1751997921030,5.27334,2620.4,2620.3,0.6929]
[1751997921429,0.76329,2620.1,2620.0,2.25560607]
[1751997921629,0.76332,2620.0,2619.9,0.76335]
[1751997921830,0.76332,2620.0,2619.9,1.42085]
[1751997922021,3.2078,2620.1,2619.8,30.52697607]
[1751997922022,0.76335,2619.9,2619.8,30.52697607]
[1751997922228,1.44115,2619.9,2619.8,31.18447607]
[1751997922426,1.44115,2619.9,2619.8,28.92887]
[1751997922932,0.6778,2619.9,2619.8,28.92887]
[1751997923427,0.6778,2619.9,2619.8,35.55058817]
[1751997923631,0.6778,2619.9,2619.8,36.83118817]
[1751997923831,0.76325,2620.3,2620.2,0.76327]
[1751997924031,1.44105,2620.3,2620.2,1.42077]
[1751997924233,0.6778,2620.3,2620.2,2.41797]
[1751997924432,1.44104,2620.3,2620.2,3.08577]
[1751997924629,0.76323,2620.4,2620.3,0.76321]
[1751997924823,0.76323,2620.4,2620.3,1.42071]
[1751997925224,3.971,2620.5,2620.4,0.76321]
[1751997925430,4.64878,2620.5,2620.4,1.42071]
[1751997925630,3.97098,2620.5,2620.4,1.42071]
[1751997925831,4.64878,2620.5,2620.4,1.42071]
[1751997927231,0.76316,2620.6,2620.5,0.76318]
[1751997927429,0.76314,2620.7,2620.6,0.76312]
[1751997927630,0.76314,2620.7,2620.6,1.42062]
[1751997927933,1.90788,2620.6,2620.2,2.9603]
[1751997928131,0.6778,2620.3,2620.2,0.6575]
[1751997928436,1.79442,2620.5,2620.4,0.76321]
[1751997928636,2.47222,2620.5,2620.4,0.76321]
[1751997929435,0.76324,2620.3,2620.2,1.42074]
[1751997930729,0.76324,2620.3,2620.2,0.6575]
[1751997931332,0.76329,2620.1,2620.0,27.489]
[1751997931732,1.44109,2620.1,2620.0,27.489]
[1751997931932,1.44109,2620.1,2620.0,28.1465]
[1751997932333,1.44109,2620.1,2620.0,0.6575]
[1751997932735,2.75199,2620.1,2620.0,0.6575]
[1751997933336,0.76332,2620.0,2619.9,0.76335]
[1751997933537,1.44112,2620.0,2619.9,0.76335]
[1751997933939,1.44112,2620.0,2619.9,1.42085]
[1751997934837,0.76335,2619.9,2619.8,0.76336]
[1751997935141,1.44115,2619.9,2619.8,28.90386]
[1751997935431,0.76341,2619.7,2619.6,2.25560607]
[1751997935639,4.9168,2619.9,2619.3,1.6799]
[1751997935836,0.7635,2619.4,2619.3,0.6827]
[1751997936035,0.7635,2619.4,2619.3,28.1637]
[1751997936237,0.7635,2619.4,2619.3,0.6827]
[1751997936837,0.7635,2619.4,2619.3,2.1037]
[1751997937939,3.2078,2619.6,2619.5,0.76347]
[1751997938338,3.97124,2619.6,2619.5,0.76347]
[1751997938940,0.76347,2619.5,2619.4,0.76348]
[1751997939131,1.44127,2619.5,2619.4,0.76348]
[1751997939331,0.7635,2619.4,2619.3,0.6827]
[1751997939537,0.76353,2619.3,2619.2,28.24154]
[1751997939937,0.76353,2619.3,2619.2,1.42104]
[1751997940134,0.76353,2619.3,2619.2,0.6575]
[1751997940339,0.76353,2619.3,2619.2,1.42106]
[1751997941338,0.76353,2619.3,2619.2,0.76356]
[1751997941739,1.44133,2619.3,2619.2,1.42106]
[1751997942138,0.6778,2619.3,2619.2,5.62606]
[1751997942342,1.90834,2620.0,2619.3,1.90881]
[1751997942343,1.90847,2619.8,2619.3,1.90881]
[1751997942540,0.76344,2619.7,2619.6,0.76341]
[1751997942741,3.2078,2619.9,2619.6,0.6575]
[1751997942938,0.76344,2619.6,2619.5,0.6933]
[1751997943143,0.7635,2619.4,2619.3,0.76351]
[1751997943343,0.76356,2619.3,2619.2,28.23354]
[1751997943547,1.44136,2619.3,2619.2,28.23354]
[1751997943746,1.44136,2619.3,2619.2,28.89104]
[1751997944047,0.76356,2619.2,2619.1,0.6933]
[1751997944243,0.76361,2619.0,2618.9,82.436]
[1751997944439,1.44141,2619.0,2618.9,82.436]
[1751997944637,1.44141,2619.0,2618.8,3.69155607]
[1751997944638,0.76364,2618.9,2618.8,2.92790607]
[1751997944840,0.76367,2618.8,2618.7,28.23068]
[1751997945041,0.7637,2618.7,2618.6,2.25560607]
[1751997945242,1.4415,2618.7,2618.6,0.76373]
[1751997945446,1.4415,2618.7,2618.6,1.42123]
[1751997945646,1.44152,2618.7,2618.6,0.76373]
[1751997945848,1.4415,2618.7,2618.5,0.6723]
[1751997946150,5.00265,2619.0,2618.9,0.76364]
[1751997946448,0.76369,2618.8,2618.7,0.76368]
[1751997946637,1.44149,2618.8,2618.7,1.42118]
[1751997947043,3.2078,2619.0,2618.7,0.6575]
[1751997947344,0.76364,2618.9,2618.8,0.76366]
[1751997947543,1.44144,2618.9,2618.8,1.42116]
[1751997948639,0.6778,2618.9,2618.8,1.42116]
[1751997948846,1.44144,2618.9,2618.8,1.42116]
[1751997949546,0.6778,2618.9,2618.8,2.41836]
[1751997949848,4.4645,2619.3,2619.0,0.76358]
[1751997949849,0.7636,2619.1,2619.0,0.76358]
[1751997950145,6.37334,2619.3,2619.0,1.6547]
[1751997950146,3.2078,2619.3,2619.0,1.6547]
[1751997950347,0.76359,2619.2,2619.1,0.76357]
[1751997950542,1.45539,2619.2,2619.1,2.09687]
[1751997951547,0.76364,2619.0,2618.9,27.46]
[1751997951744,1.45544,2619.0,2618.9,27.46]
[1751997951943,0.6918,2619.0,2618.9,28.91733]
[1751997952143,0.6918,2619.0,2618.9,29.91453]
[1751997953048,0.76357,2619.2,2619.1,0.76359]
[1751997953251,3.2078,2619.3,2619.2,0.76356]
[1751997953548,3.2078,2619.3,2619.2,1.45726]
[1751997953749,3.8996,2619.3,2619.2,1.45726]
[1751997954350,4.66315,2619.3,2619.2,1.45726]
[1751997954850,1.45535,2619.3,2619.2,1.45726]
[1751997956047,0.76359,2619.1,2619.0,54.9]
[1751997956357,1.45539,2619.1,2619.0,54.9]
[1751997956540,0.76359,2619.1,2619.0,54.9]
[1751997956850,1.45539,2619.1,2619.0,55.66361]
[1751997957046,1.45539,2619.1,2619.0,54.9]
[1751997958556,1.45539,2619.1,2619.0,55.66361]
[1751997959152,0.76359,2619.1,2619.0,55.66361]
[1751997959352,1.45539,2619.1,2619.0,55.66361]
[1751997961259,1.45539,2619.1,2619.0,54.9]
[1751997961548,0.76359,2619.1,2619.0,54.9]
[1751997961749,1.45539,2619.1,2619.0,54.9]
[1751997962157,1.45539,2619.1,2619.0,55.66361]
[1751997962354,1.45539,2619.1,2619.0,54.9]
[1751997963355,1.45539,2619.1,2619.0,55.66361]
[1751997963654,1.45539,2619.1,2619.0,0.76361]
[1751997963955,1.45539,2619.1,2619.0,28.88631]
[1751997964457,1.45539,2619.1,2619.0,28.1227]
[1751997964849,1.45539,2619.1,2619.0,28.88631]
[1751997966556,1.45539,2619.1,2619.0,28.1177]
[1751997966855,1.45539,2619.1,2619.0,27.424]
[1751997967055,0.76361,2619.0,2618.9,3.01923607]
[1751997967252,0.76361,2619.0,2618.9,30.44023607]
[1751997967453,1.45541,2619.0,2618.9,31.13393607]
[1751997967959,0.76364,2618.9,2618.8,29.67660607]
[1751997968250,0.76364,2618.9,2618.8,2.94930607]
[1751997968450,0.76364,2618.9,2618.8,0.6937]
[1751997968651,0.7637,2618.7,2618.6,27.418]
[1751997968852,0.76373,2618.6,2618.5,2.25560607]
[1751997969052,2.02363,2618.6,2618.5,27.417]
[1751997969645,2.02363,2618.6,2618.4,2.25560607]
[1751997969646,0.76376,2618.5,2618.4,2.25560607]
[1751997969852,0.76376,2618.5,2618.4,30.36530607]
[1751997970046,0.76376,2618.5,2618.4,29.67160607]
[1751997970246,0.76376,2618.5,2618.4,29.67060607]
[1751997970449,0.76376,2618.5,2618.4,2.25560607]
[1751997970653,0.76379,2618.4,2618.3,2.25560607]
[1751997970959,5.23149,2618.4,2618.3,2.25560607]
[1751997971151,0.76382,2618.3,2618.2,2.25560607]
[1751997971350,0.76385,2618.2,2618.1,30.84929715]
[1751997971658,2.39305,2618.2,2618.1,29.69461463]
[1751997972056,2.39305,2618.2,2618.1,29.69261463]
[1751997972255,2.39305,2618.2,2618.1,27.41]
[1751997972556,0.76388,2618.1,2618.0,2.28161463]
[1751997973158,0.76391,2618.0,2617.9,29.69061463]
[1751997973348,2.39311,2618.0,2617.9,29.69061463]
[1751997973952,1.45571,2618.0,2617.9,30.45455463]
[1751997974159,1.45571,2618.0,2617.9,28.86664]
[1751997974358,1.45571,2618.0,2617.9,28.1027]
[1751997974757,1.45571,2618.0,2617.9,27.409]
[1751997975058,1.45571,2618.0,2617.9,28.86664]
[1751997975255,1.6292,2618.0,2617.7,5.48941463]
[1751997975461,2.39311,2618.0,2617.9,27.406]
[1751997975755,2.39311,2618.0,2617.7,3.2078]
[1751997975756,0.76396,2617.8,2617.7,3.2078]
[1751997976556,0.76399,2617.7,2617.6,0.6369]
[1751997977159,0.76399,2617.7,2617.6,2.09462]
[1751997977654,0.76396,2617.9,2617.6,1.3306]
[1751997977857,0.6918,2618.0,2617.9,0.76394]
[1751997978061,5.3378469,2618.9,2617.9,0.76394]
[1751997978062,0.9374,2618.8,2618.3,0.76382]
[1751997978356,0.76386,2618.2,2618.0,5.48941463]
[1751997978561,0.76386,2618.2,2618.1,0.6833]
[1751997978756,0.76386,2618.2,2618.1,28.0823]
[1751997978956,1.45566,2618.2,2618.1,28.776]
[1751997979854,1.45566,2618.2,2618.1,1.377]
[1751997980059,1.45566,2618.2,2618.1,0.6937]
[1751997980559,2.39306,2618.2,2618.1,0.6937]
[1751997981364,0.76391,2618.0,2617.9,0.76392]
[1751997981662,0.7639,2618.1,2617.9,1.39142]
[1751997982166,0.6598,2618.0,2617.9,1.39142]
[1751997982559,1.70123,2618.3,2618.1,0.76387]
[1751997982863,0.76381,2618.4,2618.2,0.76385]
[1751997983062,0.951,2618.5,2618.1,3.8353]
[1751997983063,0.76378,2618.5,2618.3,1.39131]
[1751997983260,0.76378,2618.5,2618.4,0.6734]
[1751997983460,1.42358,2618.5,2618.4,1.3009]
[1751997983660,0.76378,2618.5,2618.4,1.3009]
[1751997983858,1.42358,2618.5,2618.4,1.3009]
[1751997984559,2.37458,2618.5,2618.4,1.3009]
[1751997987963,1.42358,2618.5,2618.4,1.3009]
[1751997989057,2.37458,2618.5,2618.4,1.3009]
[1751997990771,1.42358,2618.5,2618.4,1.3009]
[1751997991166,1.90951,2618.4,2617.9,1.2805]
[1751997991366,1.90951,2618.4,2618.0,0.626]
[1751997991562,1.42371,2618.1,2618.0,0.626]
[1751997991769,1.9098,2618.0,2617.6,3.04561463]
[1751997992068,1.42379,2617.7,2617.6,0.626]
[1751997992265,1.42379,2617.7,2617.6,1.2535]
[1751997992470,1.42379,2617.7,2617.6,0.626]
[1751997992666,1.42379,2617.7,2617.6,1.2535]
[1751997993467,1.42379,2617.7,2617.6,2.01752]
[1751997993673,1.42379,2617.7,2617.6,4.29913463]
[1751997993867,3.2078,2618.1,2617.7,0.76396]
[1751997994074,0.76398,2617.8,2617.7,3.04557463]
[1751997994275,1.42378,2617.8,2617.7,2.90911463]
[1751997994568,0.76399,2617.7,2617.6,0.626]
[1751997994774,0.76399,2617.7,2617.6,1.39002]
[1751997994973,0.76399,2617.7,2617.6,1.2535]
[1751997994974,1.42379,2617.7,2617.6,1.2535]
[1751997997073,0.76405,2617.5,2617.4,3.04567463]
[1751997997274,0.76405,2617.5,2617.4,4.32477463]
[1751997997474,1.42385,2617.5,2617.4,4.32477463]
[1751997998074,1.42385,2617.5,2617.4,4.32479463]
[1751997998274,0.6598,2617.5,2617.4,4.32479463]
[1751997998474,1.90993,2617.8,2617.5,0.76404]
[1751997998768,0.76402,2617.7,2617.6,0.764]
[1751997999073,0.76402,2617.6,2617.5,4.43014463]
[1751997999276,1.42382,2617.6,2617.5,2.28161463]
[1751997999474,1.42382,2617.6,2617.5,2.90911463]
[1751997999877,0.76405,2617.5,2617.4,3.69729463]
[1751998000070,1.42384,2617.6,2617.5,0.76405]
[1751998000273,0.76404,2617.6,2617.5,1.39155]
[1751998000677,0.76404,2617.6,2617.5,3.67316463]
[1751998001778,4.14179,2618.0,2617.5,2.90911463]
[1751998001974,0.76401,2617.7,2617.6,0.76398]
[1751998002178,0.76401,2617.7,2617.6,1.39148]
[1751998002376,1.42381,2617.7,2617.6,3.67309463]
[1751998002779,0.76398,2617.8,2617.7,0.76395]
[1751998002981,1.42378,2617.8,2617.7,1.39145]
[1751998003179,1.42378,2617.8,2617.7,0.76395]
[1751998003382,0.76399,2617.7,2617.6,2.28161463]
[1751998003582,0.76402,2617.6,2617.5,3.04564463]
[1751998003782,1.42382,2617.6,2617.5,3.67314463]
[1751998003979,1.42382,2617.6,2617.5,3.04564463]
[1751998004182,1.42382,2617.6,2617.5,3.67314463]
[1751998004678,2.37482,2617.6,2617.5,0.6275]
[1751998005079,0.76408,2617.4,2617.3,1.49374049]
[1751998005281,0.76431,2616.6,2616.5,0.6883]
[1751998005576,0.76423,2616.9,2616.5,1.3158]
[1751998005775,0.76423,2616.9,2616.8,0.76424]
[1751998005976,2.17882726,2616.9,2616.8,0.76424]
[1751998006178,0.76428,2616.8,2616.7,0.76426]
[1751998006881,0.76428,2616.8,2616.5,0.6883]
[1751998006882,0.76431,2616.6,2616.5,0.6883]
[1751998007588,0.76431,2616.6,2616.5,0.6275]
[1751998008685,0.76434,2616.5,2616.4,0.76437]
[1751998008885,0.76439,2616.4,2616.3,0.76438]
[1751998009078,0.76439,2616.4,2616.3,1.39188]
[1751998009781,6.06946,2616.8,2616.6,0.7643]
[1751998009782,0.76431,2616.7,2616.6,0.7643]
[1751998009983,1.42411,2616.7,2616.6,0.7643]
[1751998010485,1.42411,2616.7,2616.6,1.4404]
[1751998010687,1.42411,2616.7,2616.6,0.7643]
[1751998010984,1.42411,2616.7,2616.6,1.4404]
[1751998011385,1.43791,2616.7,2616.6,1.4404]
[1751998012080,4.12082,2617.0,2616.6,1.4404]
[1751998012286,1.43789,2616.7,2616.6,1.4404]
[1751998013184,0.6736,2616.7,2616.6,1.4404]
[1751998013386,0.76428,2616.8,2616.7,0.76429]
[1751998013586,0.7643,2616.7,2616.6,0.76429]
[1751998013781,0.6736,2616.7,2616.6,0.6761]
[1751998013981,1.43789,2616.7,2616.6,0.6761]
[1751998014186,0.6736,2616.7,2616.5,0.76433]
[1751998014385,0.76434,2616.5,2616.4,3.97215]
[1751998014579,0.76434,2616.5,2616.4,3.2078]
[1751998014884,0.7644,2616.3,2616.2,0.76441]
[1751998015188,0.7644,2616.4,2616.3,0.76439]
[1751998015390,0.7644,2616.4,2616.3,1.44049]
[1751998015687,0.7644,2616.4,2616.3,0.76439]
[1751998015883,0.7644,2616.4,2616.3,1.44049]
[1751998016079,0.7644,2616.4,2616.3,0.6761]
[1751998016686,2.1468,2616.4,2616.3,0.6761]
[1751998018287,0.76443,2616.2,2616.1,0.6883]
[1751998018788,0.76443,2616.2,2616.1,1.3644]
[1751998019785,3.2078,2616.5,2616.1,1.3644]
[1751998019990,0.76443,2616.2,2616.1,2.3499]
[1751998020198,0.76443,2616.2,2616.1,3.11435]
[1751998020386,0.7644,2616.4,2616.3,0.76437]
[1751998020590,1.438,2616.4,2616.3,1.44047]
[1751998020984,3.97217,2616.5,2616.4,0.76437]
[1751998021189,4.64577,2616.5,2616.4,1.44047]
[1751998021390,3.97217,2616.5,2616.4,0.76437]
[1751998021693,4.64577,2616.5,2616.4,1.44047]
[1751998021887,4.64577,2616.5,2616.4,0.76437]
[1751998022087,4.64577,2616.5,2616.4,1.44047]
[1751998022387,4.64577,2616.5,2616.4,0.6761]
[1751998022592,3.8814,2616.5,2616.1,7.11121]
[1751998022887,1.43794,2616.5,2616.4,1.44047]
[1751998023491,1.43794,2616.5,2616.4,0.6761]
[1751998023692,1.43794,2616.5,2616.3,0.76438]
[1751998023693,0.76437,2616.4,2616.3,0.76438]
[1751998024086,0.6736,2616.5,2616.3,0.6761]
[1751998024291,0.76437,2616.4,2616.3,1.44049]
[1751998024492,0.7644,2616.3,2616.2,0.76442]
[1751998024793,0.7644,2616.3,2616.2,1.44052]
[1751998025294,0.7644,2616.4,2616.3,0.76438]
[1751998025493,0.6736,2616.5,2616.4,0.76437]
[1751998025689,0.76421,2617.1,2616.4,3.2078]
[1751998025886,0.9394,2617.3,2617.2,0.76414]
[1751998026190,1.42510844,2617.3,2617.2,4.17805817]
[1751998026387,0.764,2617.7,2617.6,0.76402]
[1751998026690,1.4252523,2617.7,2617.6,0.76402]
[1751998026890,1.90959,2618.3,2617.6,0.76402]
[1751998026891,4.0752869,2618.7,2618.2,0.76385]
[1751998027095,0.76382,2618.3,2618.1,3.41391817]
[1751998027293,0.7638,2618.4,2618.1,3.41391817]
[1751998027589,0.9394,2618.6,2618.4,0.76379]
[1751998027794,0.9394,2618.6,2618.1,3.41391817]
[1751998027795,0.6736,2618.6,2618.5,0.6761]
[1751998027990,1.43735,2618.6,2618.5,0.6761]
[1751998028191,1.43735,2618.6,2618.5,1.43986]
[1751998028192,0.6736,2618.6,2618.5,1.43986]
[1751998028590,3.2078,2618.8,2618.7,0.7637]
[1751998028794,3.8814,2618.8,2618.7,0.7637]
[1751998028996,4.64507,2618.8,2618.7,1.4398]
[1751998029191,3.8814,2618.8,2618.7,1.4398]
[1751998029592,1.43727,2618.8,2618.7,0.6761]
[1751998029990,0.6736,2618.8,2618.7,0.6761]
[1751998030198,1.43727,2618.8,2618.7,0.6761]
[1751998030892,0.76363,2619.0,2618.8,0.76366]
[1751998031199,2.308,2619.5,2618.9,3.2078]
[1751998031398,0.76354,2619.3,2619.1,0.76356]
[1751998031591,0.6736,2619.3,2618.1,0.9855]
[1751998031797,1.3686,2619.2,2618.7,0.7637]
[1751998032099,0.76362,2619.0,2618.8,0.76366]
[1751998032296,0.76367,2618.8,2618.7,0.6724]
[1751998032600,0.76376,2618.5,2618.3,3.2078]
[1751998032794,0.76376,2618.5,2618.4,0.6761]
[1751998032991,0.76372,2618.7,2618.5,0.76374]
[1751998033190,0.7637,2618.7,2618.6,3.2078]
[1751998033393,0.76374,2618.6,2618.5,1.3359]
[1751998033597,0.76367,2618.8,2618.5,1.3359]
[1751998033796,0.76373,2618.6,2618.5,1.3359]
[1751998033997,1.90919,2618.8,2618.5,0.6761]
[1751998034199,0.76373,2618.6,2618.5,0.6761]
[1751998034401,0.6736,2618.6,2618.3,0.76382]
[1751998034602,0.76379,2618.4,2618.3,1.3359]
[1751998034797,0.76378,2618.5,2618.3,2.09972]
[1751998035102,0.76378,2618.5,2618.4,0.76379]
[1751998035397,0.76379,2618.4,2618.3,2.0997]
[1751998035695,0.76379,2618.4,2618.3,2.012]
[1751998035894,0.76379,2618.4,2618.3,2.77582]
[1751998036097,0.76379,2618.4,2618.3,2.012]
[1751998037600,0.76379,2618.4,2618.3,2.77582]
[1751998037796,0.76379,2618.4,2618.3,2.012]
[1751998038003,1.43739,2618.4,2618.3,0.6761]
[1751998038203,0.76382,2618.3,2618.2,0.6751]
[1751998038399,8.53101817,2618.7,2618.2,0.6751]
[1751998038400,3.2078,2618.7,2618.2,7.2057]
[1751998038599,0.76357,2619.2,2619.1,0.76358]
[1751998038798,0.76359,2619.1,2619.0,3.97139]
[1751998038998,0.76358,2619.2,2619.1,0.76358]
[1751998039194,1.43718,2619.2,2619.1,1.43969]
[1751998039393,1.43718,2619.2,2619.1,0.6761]
[1751998039600,1.43716,2619.2,2619.1,0.6761]
[1751998041405,0.76364,2619.0,2618.8,1.44836]
[1751998041701,0.9394,2619.9,2619.2,1.90887]
[1751998042007,0.7634,2619.8,2619.6,0.76343]
[1751998042205,0.6257,2619.7,2619.6,0.76343]
[1751998042600,0.6257,2619.7,2619.6,4.17734817]
[1751998043799,0.76337,2619.9,2619.8,0.76338]
[1751998044003,1.38907,2619.9,2619.8,0.76338]
[1751998044405,1.38907,2619.9,2619.6,3.41391817]
[1751998044406,1.38907,2619.9,2619.7,0.76341]
[1751998044600,0.76338,2619.8,2619.7,0.76341]
[1751998044806,1.38908,2619.8,2619.7,1.43271]
[1751998045598,1.38908,2619.8,2619.7,0.6693]
[1751998046104,1.38908,2619.8,2619.7,1.43271]
[1751998047906,0.6257,2619.8,2619.7,1.43271]
[1751998048398,0.6257,2619.8,2619.7,4.64051]
[1751998048598,0.76329,2620.2,2620.1,0.76328]
[1751998048907,0.6257,2620.2,2620.1,7.38500817]
[1751998049305,0.76335,2619.9,2619.8,3.8889]
[1751998049503,0.76335,2619.9,2619.8,2.11378]
[1751998050406,0.6257,2620.2,2619.8,2.11378]
[1751998050407,0.76334,2620.0,2619.9,0.76334]
[1751998050912,0.76331,2620.1,2620.0,0.76331]
[1751998051305,3.2078,2620.4,2619.9,3.41391817]
[1751998051503,0.76324,2620.3,2620.2,4.17716817]
[1751998051703,0.6257,2620.4,2620.3,0.76323]
[1751998052107,0.6257,2620.4,2620.3,1.43253]
[1751998053512,0.9613,2620.6,2620.5,0.76318]
[1751998053812,1.38885,2620.6,2620.5,0.76318]
[1751998054011,0.76319,2620.5,2620.4,0.76319]
[1751998054414,0.6257,2620.5,2620.4,1.43249]
[1751998055114,0.76313,2620.7,2620.6,0.76313]
[1751998055312,1.38883,2620.7,2620.6,1.43243]
[1751998055513,1.38883,2620.7,2620.6,0.76313]
[1751998055711,1.38883,2620.7,2620.6,1.43243]
[1751998055912,0.76316,2620.6,2620.5,0.76316]
[1751998056108,1.2871,2620.9,2620.8,0.76309]
[1751998056314,0.6257,2620.9,2620.8,4.84630817]
[1751998056716,0.76299,2621.2,2621.1,0.76299]
[1751998057010,2.03080983,2621.2,2621.1,1.43229]
[1751998057217,1.40510983,2621.2,2621.1,4.84620817]
[1751998057410,3.2078,2621.6,2621.1,3.41391817]
[1751998057610,0.9613,2621.8,2621.4,0.76292]
[1751998057611,1.40516158,2621.5,2621.4,0.76292]
[1751998057812,2.79375158,2621.5,2621.4,0.76292]
[1751998058112,0.76297,2621.2,2621.1,3.2078]
[1751998058309,0.76302,2621.1,2621.0,0.76301]
[1751998059314,0.76302,2621.1,2621.0,1.43231]
[1751998059516,0.76302,2621.1,2621.0,0.6693]
[1751998060417,0.76302,2621.1,2621.0,1.43233]
[1751998060915,0.76302,2621.1,2621.0,0.76303]
[1751998061117,2.35002,2621.1,2621.0,0.76303]
[1751998061417,0.76302,2621.1,2621.0,0.76303]
[1751998061618,2.35002,2621.1,2621.0,0.76303]
[1751998062708,2.35002,2621.1,2621.0,1.43233]
[1751998062915,0.6257,2621.1,2621.0,0.76303]
[1751998063112,0.6257,2621.1,2621.0,1.43233]
[1751998063516,1.3887,2621.1,2621.0,1.43233]
[1751998063920,3.2078,2621.6,2621.0,1.43233]
[1751998064112,0.76291,2621.5,2621.4,0.76289]
[1751998064415,0.76295,2621.4,2621.3,0.76293]
[1751998064618,0.76303,2621.1,2621.0,27.94101]
[1751998064814,0.76303,2621.1,2621.0,28.61031]
[1751998065015,0.76303,2621.1,2621.0,27.94101]
[1751998065916,0.76303,2621.1,2621.0,28.61031]
[1751998067119,0.9613,2621.4,2621.0,27.8473]
[1751998067325,1.72426,2621.4,2621.3,0.76294]
[1751998067519,2.34996,2621.4,2621.3,0.76294]
[1751998068517,0.76294,2621.3,2621.2,0.76295]
[1751998068720,0.76294,2621.3,2621.2,27.93295]
[1751998069021,0.76294,2621.3,2621.2,28.60225]
[1751998069922,1.38864,2621.3,2621.2,28.60225]
[1751998071629,1.41004,2621.3,2621.2,28.56145]
[1751998071925,1.41004,2621.3,2621.2,1.39145]
[1751998072127,1.41004,2621.3,2621.2,28.55145]
[1751998073221,1.41004,2621.3,2621.2,1.39145]
[1751998073421,1.41004,2621.3,2621.2,28.55045]
[1751998073623,3.49738,2621.3,2620.7,3.2078]
[1751998073826,0.76306,2621.0,2620.9,0.76303]
[1751998074020,1.41016,2621.0,2620.9,0.76303]
[1751998074426,1.41016,2621.0,2620.9,1.39153]
[1751998075127,1.41016,2621.0,2620.9,28.54453]
[1751998076124,1.41016,2621.0,2620.9,0.6285]
[1751998076325,1.41016,2621.0,2620.9,28.54456]
[1751998077021,1.41016,2621.0,2620.9,27.7815]
[1751998077226,1.41016,2621.0,2620.9,0.6285]
[1751998077527,0.76315,2620.6,2620.5,55.73615]
[1751998077828,0.76315,2620.6,2620.5,82.88415]
[1751998077829,1.41025,2620.6,2620.5,82.88415]
[1751998078032,0.6471,2620.6,2620.5,82.88415]
[1751998078533,1.41025,2620.6,2620.5,55.73615]
[1751998078719,1.41025,2620.6,2620.5,82.88315]
[1751998078720,0.6471,2620.6,2620.5,82.88315]
[1751998081529,0.76311,2620.8,2620.7,0.76312]
[1751998081729,2.82218854,2620.8,2620.7,28.53362]
[1751998081927,3.76508854,2620.8,2620.7,28.53362]
[1751998082128,3.76508854,2620.8,2620.7,27.90512]
[1751998082727,2.05907854,2620.8,2620.7,35.15533817]
[1751998083034,0.76293,2621.5,2621.4,0.76288]
[1751998083237,2.35293,2621.5,2621.4,0.76288]
[1751998083434,3.64793,2621.5,2621.4,0.76288]
[1751998083637,0.6471,2621.5,2621.4,1.39138]
[1751998084126,1.40999,2621.5,2621.4,1.39138]
[1751998084334,2.35289,2621.5,2621.4,1.39138]
[1751998084530,0.76297,2621.3,2620.9,1.90762]
[1751998084730,0.76297,2621.3,2621.2,0.76293]
[1751998085136,1.41007,2621.3,2621.2,0.76293]
[1751998085435,2.35297,2621.3,2621.2,0.76293]
[1751998086338,2.35297,2621.3,2621.2,1.39143]
[1751998086530,0.76297,2621.3,2621.2,0.76293]
[1751998086833,2.35297,2621.3,2621.2,0.76293]
[1751998087025,0.6471,2621.3,2621.2,1.39143]
[1751998087231,0.76289,2621.5,2621.4,0.76292]
[1751998087433,1.40999,2621.5,2621.4,1.39142]
[1751998087834,1.40999,2621.5,2621.4,0.76292]
[1751998088033,2.35289,2621.5,2621.4,0.76292]
[1751998089036,0.6471,2621.5,2621.4,0.76292]
[1751998089231,0.6471,2621.5,2621.4,1.39142]
[1751998089439,1.40999,2621.5,2621.4,1.39142]
[1751998090237,2.35289,2621.5,2621.4,1.39142]
[1751998090736,1.40999,2621.5,2621.4,1.39142]
[1751998091637,1.40999,2621.5,2621.4,0.76292]
[1751998091837,1.40999,2621.5,2621.4,1.39142]
[1751998092036,1.40999,2621.5,2621.4,0.6285]
[1751998092234,0.76292,2621.4,2621.3,27.12]
[1751998092442,0.76297,2621.3,2621.2,0.76294]
[1751998092629,2.35297,2621.3,2621.2,27.87894]
[1751998092833,2.35297,2621.3,2621.2,0.76297]
[1751998093038,2.35297,2621.3,2621.1,0.76298]
[1751998093039,0.763,2621.2,2621.1,0.76298]
[1751998093337,0.763,2621.2,2621.1,27.87798]
[1751998093537,0.763,2621.2,2621.1,28.50548]
[1751998094237,0.763,2621.2,2621.1,0.6285]
[1751998094436,5.2657,2621.2,2621.1,0.6285]
[1751998094636,5.2657,2621.2,2621.1,1.3915]
[1751998095038,2.0579,2621.2,2621.1,1.3915]
[1751998095236,3.45976298,2621.2,2621.1,1.3915]
[1751998095739,1.59,2621.3,2621.2,0.76297]
[1751998095942,3.75467203,2621.3,2621.2,0.76297]
[1751998096542,0.76294,2621.3,2621.2,0.76297]
[1751998096741,0.6471,2621.3,2621.2,1.41187]
[1751998096942,0.6471,2621.3,2621.2,2.04037]
[1751998097738,1.41004,2621.3,2621.2,1.2774]
[1751998097939,2.04939039,2621.3,2620.7,3.40686984]
[1751998098140,5.11535,2621.1,2620.6,27.104]
[1751998098344,1.70594,2621.0,2620.9,0.76306]
[1751998098643,1.70594,2621.0,2620.9,1.39156]
[1751998098644,3.7554933,2621.0,2620.9,1.39156]
[1751998098843,2.0495533,2621.0,2620.9,31.70336]
[1751998099044,2.0495533,2621.0,2620.9,28.49556]
[1751998100642,2.8125833,2621.0,2620.9,28.49556]